Cogmind - Beta 9.3 @@@ ROGUE MODE // 2019.12.30 @ 10:13:03 Player: 3.14 Result: Self-destructed Performance ------------- Evolutions (2) 1000 Regions Visited (4) 800 Robots Destroyed (37) 185 Value Destroyed (878) 878 Prototype IDs (0) 0 Alien Tech Used (0) 0 Bonus (51) 51 TOTAL SCORE: 2914 Bonus ------- High Alert Combat Kills 51 Cogmind --------- Core Integrity 366/550 Matter 294/300 Energy 100/100 System Corruption 0% Temperature Cool (0) Movement Rolling (95) Location -8/Materials Parts ------- > --- POWER (1) -------- (None) > --- PROPULSION (2) --- Compact Wheel Armored Wheel > --- UTILITY (6) ------ Improved Heat Sink Small Storage Unit Small Storage Unit Small Storage Unit Hardened Light Armor Plating > --- WEAPON (2) ------- Assault Rifle Heavy Assault Rifle > --- INVENTORY (10) --- Light Deuterium Engine Light Nuclear Core Carbon-fiber Leg Compact Wheel Heat Sink Shock Rifle Particle Gun Light Assault Rifle Gauss Rifle Peak State ------------ > --- POWER ------------ Light Nuclear Core > --- PROPULSION ------- Compact Wheel Armored Wheel > --- UTILITY ---------- Improved Heat Sink Small Storage Unit Small Storage Unit Small Storage Unit Hardened Light Armor Plating > --- WEAPON ----------- Assault Rifle Heavy Assault Rifle > --- INVENTORY -------- Light Deuterium Engine Light Nuclear Core Carbon-fiber Leg Compact Wheel Heat Sink Shock Rifle Particle Gun Light Assault Rifle Gauss Rifle [Rating: 19] Favorites ----------- Power Ion Engine Engine Ion Engine Power Core Light Nuclear Core Propulsion Armored Wheel Wheel Armored Wheel Utility Small Storage Unit Device Heat Sink Storage Small Storage Unit Protection Hardened Light Armor Plating Weapon Light EM Pulse Cannon Energy Gun Shock Rifle Energy Cannon Light EM Pulse Cannon Ballistic Gun Light Assault Rifle Launcher Grenade Launcher Build | -11 -10 -9 -9 -8 ------- Run | Scr Mat Mat Min Mat Slots Evolved 4 | . . 2 . 2 Power . | . . . . . Propulsion . | . . . . . Utility 4 | . . 2 . 2 Weapon . | . . . . . Parts Attached 39 | 7 6 . 11 15 Power 5 | 1 1 . 1 2 Engine 3 | 1 1 . 1 . Core 2 | . . . . 2 Reactor . | . . . . . Propulsion 8 | 3 2 . . 3 Treads . | . . . . . Leg . | . . . . . Wheel 8 | 3 2 . . 3 Hover . | . . . . . Flight . | . . . . . Utility 7 | 1 1 . 3 2 Device 3 | . . . 2 1 Storage 3 | 1 1 . 1 . Processor . | . . . . . Hackware . | . . . . . Protection 1 | . . . . 1 Artifact . | . . . . . Weapon 19 | 2 2 . 7 8 Energy Gun 1 | . . . . 1 Energy Cannon 7 | . 2 . 4 1 Ballistic Gun 6 | 2 . . . 4 Ballistic Cannon . | . . . . . Launcher 5 | . . . 3 2 Special Weapon . | . . . . . Impact Weapon . | . . . . . Slashing Weapon . | . . . . . Piercing Weapon . | . . . . . Special Melee Weapon . | . . . . . Unidentified Prototypes . | . . . . . Parts Lost 9 | . . . 4 5 Power 3 | . . . 1 2 Propulsion . | . . . . . Utility 1 | . . . 1 . Weapon 5 | . . . 2 3 Highest Loss Streak 3 | . . . 3 2 Average Slot Usage (%) 79 | . 96 77 83 69 Engine 8 | . 14 11 10 4 Core 1 | . . . . 4 Wheel 21 | . 28 22 22 18 Device 3 | . . . 7 1 Storage 25 | . 24 22 25 27 Energy Cannon 11 | . 7 22 16 5 Ballistic Gun 5 | . 21 . . 6 Naked Turns . | . . . . . Heaviest Build 28 | 9 21 21 22 28 Greatest Support 28 | 26 24 24 24 28 Greatest Overweight (x) . | . . . . . Average Overweight (x) . | . . . . . Largest Inventory Capacity 10 | 6 8 8 10 10 Average Capacity 8 | 5 7 8 8 10 Most Carried 10 | 5 8 8 9 10 Average Carried 7 | 2 7 8 8 9 Final Capacity 10 | 6 8 8 10 10 Final Carried 9 | 5 8 8 8 9 Class Distribution -------------------- 90% | Mutant 9% | Scavenger-Mutant Dominant Class ---------------- Mutant | -10/Materials Mutant | -9/Materials Mutant | -9/Mines Mutant | -8/Materials Resources | -11 -10 -9 -9 -8 ----------- Run | Scr Mat Mat Min Mat Matter Collected 823 | 288 74 . 245 216 Remotely . | . . . . . Salvage Created 1304 | 101 194 49 522 438 Parts 57 | 4 7 2 30 14 Haulers Intercepted 1 | . . 1 . . Recyclers Shooed 5 | . 2 1 . 2 Parts Field Recycled . | . . . . . Retrieved Matter . | . . . . . Parts Self-Destructed . | . . . . . Prevented . | . . . . . Kills | -11 -10 -9 -9 -8 ------- Run | Scr Mat Mat Min Mat Combat Hostiles Destroyed 26 | . 1 . 20 5 Guns 4 | . . . . 4 Cannons 5 | . . . 4 1 AOE 16 | . . . 16 . Classes Destroyed 11 | 2 1 1 4 3 Worker 2 | . . . 1 1 Tunneler 1 | 1 . . . . Hauler 1 | . . 1 . . Recycler 5 | 1 2 . 1 1 Watcher 2 | . . . . 2 Swarmer 11 | . . . 11 . Grunt 9 | . 1 . 7 1 Duelist 2 | . . . 1 1 Sentry 1 | . . . . 1 Demolisher 1 | . . . 1 . Hunter 2 | . . . . 2 Best Kill Streak 9 | 2 2 1 9 3 Combat Bots Only 7 | . 1 . 7 2 Max Kills in Single Turn 4 | 1 1 1 4 1 Gunslinging . | . . . . . Exploded 4 | . . . 4 . Melee . | . . . . . Uniques/NPCs Destroyed . | . . . . . Combat | -11 -10 -9 -9 -8 -------- Run | Scr Mat Mat Min Mat Damage Taken 1722 | . 22 24 865 811 Core 475 | . 12 . 279 184 Absorbed by Shields . | . . . . . Core Remaining (%) 75 | 100 95 . 30 . Volleys Fired 94 | 9 9 2 31 43 Largest 2 | 2 2 2 2 2 Hottest 112 | 40 112 112 112 76 Shots Fired 138 | 18 18 4 36 62 Gun 72 | 18 14 . . 40 Cannon 47 | . 4 4 21 18 Launcher 19 | . . . 15 4 Special . | . . . . . Kinetic 64 | 18 14 . . 32 Thermal . | . . . . . Explosive 19 | . . . 15 4 Electromagnetic 55 | . 4 4 21 26 Robot Hit Streak 14 | 8 6 9 8 14 Robot Miss Streak 3 | 2 3 . 3 3 Penetration Max . | . . . . . Secondary Targets 1 | . . . . 1 Max Gunslinging Chain 1 | . . . . 1 Shots Hit Robots 94 | 13 13 4 18 46 Core Hits 62 | 4 5 1 29 23 Critical Hits 1 | . . . . 1 Critical Kills . | . . . . . Critical Parts Destroyed . | . . . . . Melee Attacks . | . . . . . Impact . | . . . . . Slashing . | . . . . . Piercing . | . . . . . Sneak Attacks . | . . . . . Combat Hostiles . | . . . . . Follow-up Attacks . | . . . . . Damage Inflicted 2734 | 92 160 114 1341 1027 Guns 515 | 92 65 . . 358 Cannons 897 | . 95 70 313 419 Explosions 1322 | . . 44 1028 250 Melee . | . . . . . Ramming . | . . . . . Kinetic 413 | 92 65 . . 256 Thermal 338 | . . 44 125 169 Explosive 984 | . . . 903 81 Electromagnetic 999 | . 95 70 313 521 Impact . | . . . . . Slashing . | . . . . . Piercing . | . . . . . Highest Corruption . | . . . . . Average Corruption . | . . . . . Corruption Purged . | . . . . . Overload Shots . | . . . . . Overflow Damage 104 | . . . 61 43 Projectiles 28 | . . . . 28 Explosions 76 | . . . 61 15 Melee . | . . . . . Knockbacks . | . . . . . Impact . | . . . . . Kinetic . | . . . . . Secondary . | . . . . . Self-Inflicted Damage 145 | . . 24 82 39 Shots 4 | . . 1 2 1 Rammed . | . . . . . Targets Rammed . | . . . . . Kicked . | . . . . . Crushed . | . . . . . Highest Temperature 114 | . 114 54 90 44 Average Temperature 25 | . 61 29 27 14 Received Heat Transfer 294 | . 12 . 75 207 Siege Activations . | . . . . . Robots Corrupted 1 | . 1 . . . Combat Hostiles 1 | . 1 . . . Parts Fried 4 | . 1 . . 3 Impact Corruptions . | . . . . . Robots Melted . | . . . . . Combat Hostiles . | . . . . . Parts Melted . | . . . . . Heat Transferred 550 | . . 50 200 300 Parts Sabotaged . | . . . . . Parts Stolen . | . . . . . Parts Stripped . | . . . . . Power Chain Reactions 6 | . . 1 2 3 Missiles Intercepted . | . . . . . Alert | -11 -10 -9 -9 -8 ------- Run | Scr Mat Mat Min Mat Peak Influence 464 | 10 46 25 464 444 Average Influence 179 | 2 20 20 221 273 Maximum Alert Level 2 | . . . 2 2 Low Security (%) 63 | 100 100 100 61 34 Level 1 23 | . . . 13 56 Level 2 12 | . . . 24 9 Level 3 . | . . . . . Level 4 . | . . . . . Level 5 . | . . . . . High Security . | . . . . . Max Security . | . . . . . Squads Dispatched 2 | . 1 . . 1 Investigation 1 | . . . . 1 Extermination . | . . . . . Reinforcement 1 | . 1 . . . Assault . | . . . . . Garrison . | . . . . . Intercept . | . . . . . Construction Impeded . | . . . . . Haulers Reinforced . | . . . . . Stealth | -11 -10 -9 -9 -8 --------- Run | Scr Mat Mat Min Mat Distress Signals 5 | . 2 . . 3 Communications Jammed . | . . . . . Distress Signals . | . . . . . Times Spotted 36 | . 2 2 19 13 Peak Tracking Total 6 | . 2 2 6 4 Tactical Retreats 2 | . 1 . . 1 Traps | -11 -10 -9 -9 -8 ------- Run | Scr Mat Mat Min Mat Traps Triggered . | . . . . . Indirectly . | . . . . . Trap Hack Attempts . | . . . . . Triggered . | . . . . . Disarmed . | . . . . . Reprogrammed . | . . . . . Reused . | . . . . . Traps Extracted . | . . . . . Installed . | . . . . . Triggered . | . . . . . Machines | -11 -10 -9 -9 -8 ---------- Run | Scr Mat Mat Min Mat Machines Disabled 3 | . . . 1 2 Max in Single Turn 1 | . . . 1 1 Machines Sabotaged . | . . . . . Garrisons Compromised . | . . . . . Overloaded Fab Kills . | . . . . . Fab Network Shutdowns . | . . . . . Hacking | -11 -10 -9 -9 -8 --------- Run | Scr Mat Mat Min Mat Machines Accessed 1 | . . . . 1 Terminals . | . . . . . Fabricators . | . . . . . Repair Stations . | . . . . . Recycling Units . | . . . . . Scanalyzers 1 | . . . . 1 Garrison Access . | . . . . . Total Hacks 3 | . . . . 3 Successful 3 | . . . . 3 Failed . | . . . . . Catastrophic . | . . . . . Database Lockouts . | . . . . . Manual . | . . . . . Terminals . | . . . . . Fabricators . | . . . . . Repair Stations . | . . . . . Recycling Units . | . . . . . Scanalyzers 3 | . . . . 3 Garrison Access . | . . . . . Terminal Hacks . | . . . . . Fabricator Hacks . | . . . . . Repair Station Hacks . | . . . . . Recycling Unit Hacks . | . . . . . Scanalyzer 3 | . . . . 3 Insert Component 1 | . . . . 1 Analyze 2 | . . . . 2 Garrison Access Hacks . | . . . . . Unauthorized Hacks . | . . . . . Terminals . | . . . . . Fabricators . | . . . . . Repair Stations . | . . . . . Recycling Units . | . . . . . Scanalyzers . | . . . . . Garrison Access . | . . . . . Data Cores Recovered . | . . . . . Used . | . . . . . Hacking Detections 1 | . . . . 1 Full Trace Events 1 | . . . . 1 Feedback Events . | . . . . . Feedback Blocked . | . . . . . Robot Schematics Acquired . | . . . . . Robots Built . | . . . . . Matter . | . . . . . Time . | . . . . . Total Robot Build Rating . | . . . . . Part Schematics Acquired 1 | . . . . 1 Parts Built . | . . . . . Matter . | . . . . . Time . | . . . . . Total Part Build Rating . | . . . . . Parts Repaired . | . . . . . Time . | . . . . . Parts Recycled . | . . . . . Recycled Matter . | . . . . . Retrieved Matter . | . . . . . Retrieved Components . | . . . . . Parts Scanalyzed 1 | . . . . 1 Part Schematics Acquired 1 | . . . . 1 Parts Damaged . | . . . . . Bothacking | -11 -10 -9 -9 -8 ------------ Run | Scr Mat Mat Min Mat Used RIF Installer . | . . . . . Robots Hacked . | . . . . . Non-combat . | . . . . . Combat . | . . . . . Robot Hacks Applied . | . . . . . Relay Couplers Released . | . . . . . Robots Rewired . | . . . . . Allies Hacked . | . . . . . Hacks Repelled . | . . . . . Allies | -11 -10 -9 -9 -8 -------- Run | Scr Mat Mat Min Mat Total Allies . | . . . . . Largest Group . | . . . . . Highest-Rated Group . | . . . . . Highest-Rated Ally . | . . . . . Total Orders . | . . . . . Ally Attacks . | . . . . . Total Damage . | . . . . . Kills . | . . . . . Allies Corrupted . | . . . . . Allies Melted . | . . . . . Intel | -11 -10 -9 -9 -8 ------- Run | Scr Mat Mat Min Mat Robot Analysis Total . | . . . . . Derelict Logs Recovered . | . . . . . Drone Launches . | . . . . . Drone Recoveries . | . . . . . Exploration | -11 -10 -9 -9 -8 ------------- Run | Scr Mat Mat Min Mat Turns Passed 956 | 89 128 52 387 300 Spaces Moved 680 | 60 98 50 323 149 Core 5 | 5 . . . . Treads . | . . . . . Legs . | . . . . . Wheels 675 | 55 98 50 323 149 Hover . | . . . . . Flight . | . . . . . Fastest Speed 50 | 50 80 90 90 90 Average Speed 89 | 84 88 90 90 91 Slowest Speed 95 | 90 90 90 90 95 Overloaded Moves . | . . . . . Propulsion Burnouts . | . . . . . Robots Hopped . | . . . . . Cave-ins Triggered . | . . . . . Exploration Rate (%) 22 | 4 18 10 64 14 Regions Visited 4 Branch Regions 1 Pre-discovered Areas . | . . . . . Known Exits Taken . | . . . . . Unknown Exits Taken 4 | 1 1 1 1 . Scrap Searched . | . . . . . Spaces Dug 7 | . . . . 7 Terrain Destroyed 132 | . . 6 96 30 Melee . | . . . . . Projectile . | . . . . . AOE 132 | . . 6 96 30 Actions | -11 -10 -9 -9 -8 --------- Run | Scr Mat Mat Min Mat Total 887 | 80 125 52 378 252 Wait 45 | . . 1 13 31 Move 676 | 59 97 49 322 149 Hop . | . . . . . Pick Up 21 | 5 7 . 1 8 Fast Attach 13 | 6 2 . 2 3 Attach 7 | . . . 2 5 Detach 1 | . . . . 1 Swap 19 | 1 4 . 7 7 Drop 11 | . 6 . . 5 Fire 94 | 9 9 2 31 43 Melee . | . . . . . Ram . | . . . . . Kick . | . . . . . Crush . | . . . . . Escape Stasis . | . . . . . Rewire . | . . . . . Trap . | . . . . . Miscellaneous . | . . . . . Route ------- -11/Scrapyard -10/Materials -9/Materials -9/Mines -8/Materials History --------- Turn | Location | Event 7 | -11/Scrapyard | Discovered new exit (range 16) 90 | -11/Scrapyard | Entered Materials 201 | -10/Materials | Discovered new exit (range 9) 218 | -10/Materials | Entered another Materials area 218 | -9/Materials | Evolved 2 slots: Utility x2 260 | -9/Materials | Discovered new exit (range 5) 270 | -9/Materials | Entered Mines 300 | -9/Mines | Build established: Mutant 542 | -9/Mines | Destroyed 7 combat bots 586 | -9/Mines | Assembled infested the area 591 | -9/Mines | Assisted by a Guerilla fighting off Assembled 612 | -9/Mines | Core integrity fell below 50% 644 | -9/Mines | Lost 3 parts (1p1u1w) 644 | -9/Mines | Discovered new exit (range 9) 657 | -9/Mines | Entered Materials 657 | -8/Materials | Evolved 2 slots: Utility x2 957 | -8/Materials | Self-destructed Last Messages --------------- 00912_ K-01 Serf collects debris. 00913_ Penetrated by Slug. 00914_ H-55 Commando destroyed. 00915_ K-01 Serf collects debris. 00925_ Acquired Gauss Rifle. 00927_ Material Processor disabled. 00928_ Grenade Launcher destroyed. 00928_ K-01 Serf collects debris. 00929_ L-31 Rogue destroyed. 00931_ K-01 Serf collects debris. 00931_ Acquired 18 matter. 00931_ K-01 Serf collects debris. 00933_ U-05 Engineer lays Concrete. 00934_ K-01 Serf collects debris. 00936_ U-05 Engineer lays Concrete. 00938_ K-01 Serf collects debris. 00939_ R-06 Scavenger collects Lgt. Assault Rifle. 00943_ Acquired Hrd. Light Armor Plating. 00952_ Acquired 16 matter. 00954_ Lgt. Nuclear Core destroyed. Map ----- +----------------------------------------------------+ | ?????????????????????????????????????????????????? | | ?????????????????????????????????????????????????? | | ?????????????????????????????????????????????????? | | ?????????????????????????? ?????????????????????? | | ?????????????????????????? ?????????????????????? | | ?????????????????????????? ?? ???????????????? | | ?????????????????????????? ??????????????? | | ????????????????????????? "T" ???????????????? | | ????????????????????????? ???????????????? | | ????????????????????????? ???????????????? | | ????????????????????????? """???????????????? | | ????????????????????????? """???????????????? | | ????????????????????????? """"??????????????? | | ????????????????????????? """"? ? ??????????? | | ?######################## % "" ??????????? | | ?# "" !# ?????????? | | ?# ""S # ?????????? | | ?# "" # !!! * ?????????? | | ?# = + !!! ^ =%########????????????????? | | ?# # !! ^ %#?#### ######???????????? | | ?# # #?# #???????????? | | ######### % """" #?# """ """ #???????????? | | # """" ### "T" """ #???????????? | | # "%"%% gg# """ #???????????? | | # + #???????????? | | # r %%@ # !!! #???????????? | | ####+### ##########+#### !! = #???????????? | | ! ###+## # [*%%= # !!! / ???????? | | # ! ## ==! ########### ??????? | | # "" # == #?????????????? ??????? | | "" """ # "Y # #?????????????????????? | | "" """ # "" # # #?????????????????????? | | "" """ # ### #?????????????????????? | | # """ #?# #?????????????????????? | | # """ #?# #?????????????????????? | | ######## """ #?# #?????????????????????? | | ???????# ! #?##########?????????????????????? | | ???????##########????????????????????????????????? | | ?????????????????????????????????????????????????? | | ?????????????????????????????????????????????????? | | ?????????????????????????????????????????????????? | | ?????????????????????????????????????????????????? | | ?????????????????????????????????????????????????? | | ?????????????????????????????????????????????????? | | ?????????????????????????????????????????????????? | | ?????????????????????????????????????????????????? | | ?????????????????????????????????????????????????? | | ?????????????????????????????????????????????????? | | ?????????????????????????????????????????????????? | | ?????????????????????????????????????????????????? | +----------------------------------------------------+ Best States ------------- Heat Dissipation 45 Energy Generation 14 Energy Capacity 250 Matter Stores 300 Matter Capacity 300 Sight Range 16 Terrain Scan Density 10 Armor Coverage 150 Evasion (%) 44 Item Schematics ----------------- Arm. Wheel | -8/Materials | Scanalyzed Robot Schematics ------------------ None Fabricated ------------ Nothing Alien Tech Used ----------------- None Achievements -------------- None Challenges ------------ None Game ------ Seed PrecisionTransportBoosters Manual? 0 Play Time 00:10:57 Cumulative 419.6 hours Start 2019.12.30 @ 10:05:10 End 2019.12.30 @ 10:13:03 Sessions 1 Manual Loads 0 Difficulty Rogue Special Mode None Game No. 741 Rogue 741 Adventurer 0 Explorer 0 Win Type - Total 30 Types 23/0/3/3/1/0/0 Lore% 93 Gallery% 91 Achievement% 80 Wizard Run 0 Options --------- ASCII 1 Keyboard 0 Movement Numpad Keybinds 0 Fullscreen 0 Font 14/SmallcapsGlow Map View 76x50 Tactical HUD 1 Map Filters NONE Filters NONE Steam 1 RUN: c7e2cb40-ce85-4f88-a688-0b7178e3bff1